[Event "GER-ch Youth-U14 2022"]
[Site "Willingen"]
[Date "2022.06.05"]
[Round "1.7"]
[White "Wunderlich, Elias"]
[Black "Honisch, Alexander"]
[Result "0-1"]
[ECO "C78"]
[WhiteElo "1619"]
[BlackElo "1878"]
[Annotator "NA RC COMBH"]
[PlyCount "120"]
[EventDate "2022.06.05"]
[EventType "swiss"]
[EventRounds "9"]
[EventCountry "GER"]
[SourceTitle "playchess.com"]
[Source "ChessBase"]
[SourceQuality "1"]
[TimeControl "40/4500+30:900+30"]

1. e4 {[%emt 0:00:00]} e5 {[%emt 0:00:00]} 2. Nf3 {[%emt 0:00:00]} Nc6 {[%emt 0:00:00]} 3. Bb5 {[%emt 0:00:00]} a6 {[%emt 0:00:00]} 4. Ba4 {[%emt 0:00:00]} Nf6 {[%emt 0:00:00]} 5. O-O {[%emt 0:00:00]} b5 {[%emt 0:00:00]} 6. Bb3 {[%emt 0:00:00]} Bc5 {[%emt 0:00:00]} 7. c3 {[%emt 0:00:00]} d6 {[%emt 0:00:00]} 8. a4 {[%emt 0:00:00]} Rb8 {[%emt 0:00:00]} 9. d4 {[%emt 0:00:00]} Bb6 {[%emt 0:00:00]} 10. a5 {[%emt 0:00:00]} Ba7 {[%emt 0:00:00]} 11. h3 {[%emt 0:00:00]} O-O {[%emt 0:00:00]} 12. Be3 {[%emt 0:00:00]} exd4 {[%emt 0:01:24] 12...Re8 is the modern continuation.} 13. cxd4 {[%emt 0:00:00]} Nb4 {[%emt 0:03:54] [#]} 14. e5 $146 {[%emt 0:13:25]} ({Predecessor:} 14. Nc3 Bb7 15. Ng5 Qe7 16. e5 dxe5 17. Nxf7 e4 18. Nd6+ Kh8 19. Nxb7 Rxb7 20. Qe2 {½-½ (44) Vachier Lagrave,M (2767)-Caruana,F (2842) Ekaterinburg 2020}) 14... dxe5 {[%emt 0:10:58]} 15. Nxe5 {[%emt 0:04:44]} Qd6 {[%emt 0:07:39]} 16. Qe2 {[%emt 0:14:54]} Nbd5 {[%emt 0:11:55]} 17. Rd1 {[%emt 0:11:31]} Be6 {[%emt 0:03:26]} 18. Bc2 {[%emt 0:07:22]} Nb4 {[%emt 0:06:09]} 19. Nc3 {[%emt 0:02:49]} Rbc8 {[%emt 0:15:11]} (19... Rbe8 $15) 20. Ne4 {[%emt 0:04:25]} Nxe4 {[%emt 0:02:37]} 21. Bxe4 {[%emt 0:00:08]} Nd5 {[%emt 0:00:15]} 22. Rac1 {[%emt 0:05:44]} c5 {[%emt 0:02:24]} 23. Bd2 {[%emt 0:07:10]} cxd4 {[%emt 0:05:25]} 24. Nd3 {[%emt 0:01:12]} Rfd8 {[%emt 0:01:48]} 25. Kh1 {[%emt 0:00:40]} Rc4 {[%emt 0:01:13]} 26. Ne5 {[%emt 0:00:29]} Rcc8 {[%emt 0:02:13]} 27. f4 {[%emt 0:00:59]} Nf6 {[%emt 0:01:02]} 28. Bd3 {[%emt 0:01:03]} Bd5 {[%emt 0:01:27]} 29. Kh2 {[%emt 0:00:48]} Re8 {[%emt 0:02:34]} 30. Rxc8 {[%emt 0:00:35]} Rxc8 {[%emt 0:00:01]} 31. Qf2 {[%emt 0:03:22]} Be4 {[%emt 0:02:02]} (31... Ne4 $19 32. Qe2 f5) 32. Re1 $17 {[%emt 0:00:45]} Qd5 {[%emt 0:01:10]} 33. Qe2 {[%emt 0:02:11]} Bxd3 {[%emt 0:00:20]} 34. Nxd3 {[%emt 0:00:04]} h6 {[%emt 0:01:02]} 35. Nb4 {[%emt 0:00:54]} Qb7 {[%emt 0:01:32]} 36. Qd3 {[%emt 0:01:18]} Rd8 {[%emt 0:03:03]} 37. Rc1 {[%emt 0:01:00]} Rd6 {[%emt 0:01:03]} 38. Qf5 {[%emt 0:00:46]} g6 {[%emt 0:01:00]} 39. Qc8+ {[%emt 0:01:09]} Qxc8 {[%emt 0:00:22]} 40. Rxc8+ {[%emt 0:00:05]} Kg7 {[%emt 0:01:08]} 41. Rc6 {[%emt 0:20:00]} Rxc6 {[%emt 0:09:58]} 42. Nxc6 {[%emt 0:00:00]} Ne4 {[%emt 0:01:16]} 43. Bc1 {[%emt 0:00:00]} Bc5 {[%emt 0:01:45]} 44. b4 {[%emt 0:00:00]} Bd6 {[%emt 0:01:23]} 45. Bb2 {[%emt 0:00:00]} Kf8 {[%emt 0:02:13]} 46. Bxd4 {[%emt 0:01:51]} Ke8 {[%emt 0:00:28]} 47. Be5 {[%emt 0:01:16]} Kd7 {[%emt 0:00:26]} 48. Nd4 {[%emt 0:00:38]} Bxb4 {[%emt 0:00:19]} 49. Nb3 {[%emt 0:00:20]} Kc6 {[%emt 0:00:37]} 50. Bg7 {[%emt 0:00:26]} h5 {[%emt 0:00:24]} 51. g4 {[%emt 0:00:27]} hxg4 {[%emt 0:00:40]} 52. hxg4 {[%emt 0:00:03]} Kd5 {[%emt 0:00:06]} 53. f5 {[%emt 0:00:42]} Nc5 {[%emt 0:01:07]} 54. Nc1 {[%emt 0:01:24]} Bxa5 {[%emt 0:00:18]} 55. Ne2 {[%emt 0:00:33]} Bd2 {[%emt 0:00:41]} 56. Kg3 {[%emt 0:00:33]} b4 {[%emt 0:00:26]} 57. fxg6 {[%emt 0:00:22]} fxg6 {[%emt 0:00:02]} 58. Bb2 {[%emt 0:00:39]} Ke4 {[%emt 0:01:05]} 59. Ng1 {[%emt 0:00:33]} Nd3 {[%emt 0:00:34]} 60. Ba1 {[%emt 0:00:32]} Bc3 {[%emt 0:01:17]} 0-1

[Event "GER-ch Youth-U14 2022"]
[Site "Willingen"]
[Date "2022.06.05"]
[Round "1.8"]
[White "Kempe, Caius Emilian"]
[Black "Mader, Fabian"]
[Result "0-1"]
[ECO "D87"]
[WhiteElo "1973"]
[BlackElo "1652"]
[Annotator "TA"]
[PlyCount "92"]
[EventDate "2022.06.05"]
[EventType "swiss"]
[EventRounds "9"]
[EventCountry "GER"]
[SourceTitle "playchess.com"]
[Source "ChessBase"]
[SourceQuality "1"]
[TimeControl "40/4500+30:900+30"]

{[%evp 23,92,17,40,0,0,0,4,0,1,0,0,0,0,-1,0,-2,0,0,0,0,0,-53,-9,-112,-95,-147,-144,-150,-130,-170,0,0,0,-60,-22,-143,-155,-190,-197,-188,-184,-207,-139,-240,-225,-333,-305,-389,-379,-710,-397,-420,-388,-397,-388,-806,-872,-841,-767,-772,-587,-587,-588,-580,-581,-655,-583,-660,-617,-654,-651]} 1. d4 {[%emt 0:00:00]} Nf6 {[%emt 0:00:00]} 2. c4 {[%emt 0:00:00]} g6 {[%emt 0:00:00]} 3. Nc3 {[%emt 0:00:00]} d5 {[%emt 0:00:00]} 4. cxd5 {[%emt 0:00:00]} Nxd5 {[%emt 0:00:00]} 5. e4 {[%emt 0:00:00]} Nxc3 {[%emt 0:00:00]} 6. bxc3 {[%emt 0:00:00]} Bg7 {[%emt 0:00:00]} 7. Bc4 {[%emt 0:00:00]} O-O {[%emt 0:00:00]} 8. Ne2 {[%emt 0:00:00]} c5 {[%emt 0:00:00]} 9. O-O {[%emt 0:00:00]} Nc6 {[%emt 0:00:00]} 10. Be3 {[%emt 0:00:00]} Na5 {[%emt 0:00:00]} 11. Bd3 {[%emt 0:00:00][%cal Bc4d3,Bd3c2,Bc2a4,Ba4b5][%mdl 32]} cxd4 {[%emt 0:00:00]} 12. cxd4 {[%emt 0:00:00]} Nc6 {[%emt 0:00:00][%cal Rc6d4]} 13. Bc2 {[%emt 0:00:00] D88: Exchange Grünfeld: Classical Line: 10 Be3 cxd4 11 cxd4.} b6 {[%emt 0:00:00]} 14. Ba4 {[%emt 0:12:35]} Na5 {[%emt 0:16:28]} 15. Bb5 {[%emt 0:20:05] Against Ba6. The position is equal.} Bb7 {[%emt 0:08:32]} 16. f3 {[%emt 0:03:10]} a6 {[%emt 0:06:23]} 17. Bd3 {[%emt 0:04:01] [#]} Rc8 $146 {[%emt 0:03:37]} ({Predecessor:} 17... Nc6 18. e5 Nb4 19. Be4 Nd5 20. Qd2 Qd7 21. Bh6 Bxh6 22. Qxh6 Rac8 23. Rac1 a5 {½-½ (39) Silva,R (2373)-Gonzalez,B (2531) ICCF email 2011}) 18. Rb1 {[%emt 0:16:20]} Nc4 {[%emt 0:05:43]} 19. Bf2 {[%emt 0:01:51]} b5 {[%emt 0:04:09][%cal Bb6b5,Bb5b4][%mdl 32]} 20. a4 {[%emt 0:01:19]} Qd7 {[%emt 0:04:34]} 21. Rb4 {[%emt 0:07:07]} Rfd8 {[%emt 0:05:12]} 22. Qa1 {[%emt 0:04:27]} (22. axb5 $11 axb5 23. Re1) 22... e6 {[%emt 0:14:08]} (22... Ne5 $5 {[%cal Re5d3]} 23. Bxb5 Nxf3+ 24. gxf3 axb5 $15) 23. Rd1 {[%emt 0:01:56]} (23. Bxc4 $11 {keeps the balance.} Rxc4 24. Rxc4 bxc4 25. Rb1) 23... Bf8 $1 $17 {[%emt 0:08:58]} 24. Rbb1 {[%emt 0:04:29]} (24. Rb3 $142) 24... b4 {[%emt 0:03:07]} ({Not} 24... bxa4 25. Bh4 Re8 26. Qa2 $11) 25. a5 {[%emt 0:02:31] [#]} Na3 $1 {[%emt 0:01:04] Black is more active.} 26. Rb3 {[%emt 0:00:30]} Nb5 $2 {[%emt 0:03:17]} (26... Bc6 $19 {White must now prevent ...Ba4.} 27. Rb2 (27. Bxa6 $2 Ra8 $19) 27... Ba4) 27. Qb2 $11 {[%emt 0:04:59]} Bc6 {[%emt 0:02:58]} 28. Kh1 {[%emt 0:01:25]} (28. Ra1 $11) 28... Ra8 {[%emt 0:00:36]} (28... Nc7 $5 {[%cal Rc6a4]} 29. Bh4 Re8 30. Rxb4 Bxb4 31. Qxb4 Ba4 $15) 29. Qa1 {[%emt 0:02:35] [#] Black keeps a firm grip on the game.} (29. Ra1 $11 {remains equal.}) 29... Na3 $1 $17 {[%emt 0:00:23]} 30. Rc1 Ba4 {[%emt 0:00:39]} 31. Rb2 {[%emt 0:00:33]} Bb5 {[%emt 0:00:06]} 32. Bxb5 {[%emt 0:00:28]} Nxb5 {[%emt 0:00:02]} 33. Rc4 {[%emt 0:00:49]} (33. Rd1 $17) 33... Rac8 {[%emt 0:00:28]} 34. Qc1 {[%emt 0:00:34]} (34. Rc1 {was worth a try.}) 34... Nc3 $19 {[%emt 0:00:49]} 35. Rxc8 {[%emt 0:00:22]} Rxc8 {[%emt 0:00:11][%cal Bd8c8,Bc8c1,Bc1e1][%mdl 32]} 36. Qd2 {[%emt 0:00:27]} (36. Nxc3 Rxc3 37. Qf1) 36... Qb5 {[%emt 0:00:52] Threatens to win with ...Nxe2.} 37. Nf4 {[%emt 0:00:50]} Qf1+ {[%emt 0:00:26]} 38. Bg1 {[%emt 0:00:07]} Na4 {[%emt 0:00:56]} 39. Rb3 {[%emt 0:00:53]} (39. Rc2 Rxc2 40. Qxc2) 39... Rc1 {[%emt 0:00:24][%csl Gc1][%cal Rf1g1] Black is clearly winning.} 40. Nh3 {[%emt 0:00:09]} Nc3 {[%emt 0:00:35]} 41. Rb2 {[%emt 0:00:00]} Re1 {[%emt 0:00:00]} 42. Qf2 {[%emt 0:00:00]} Qxf2 {[%emt 0:00:00]} 43. Nxf2 {[%emt 0:00:00]} Ne2 {[%emt 0:00:00][%csl Ge2][%cal Re1g1]} 44. Nh3 {[%emt 0:00:00]} Bh6 {[%emt 0:00:00] Hoping for ...Be3.} 45. Rb3 {[%emt 0:00:00] Against Be3} Nxg1 {[%emt 0:00:00]} 46. Nxg1 {[%emt 0:00:00]} Be3 {Weighted Error Value: White=0.59/Black=0.28 (precise)} 0-1

[Event "GER-ch Youth-U14 2022"]
[Site "Willingen"]
[Date "2022.06.05"]
[Round "1.9"]
[White "Mainka, Ingmar"]
[Black "Klaska, Philipp Leon"]
[Result "0-1"]
[ECO "B85"]
[WhiteElo "1427"]
[BlackElo "1946"]
[Annotator "TA"]
[PlyCount "77"]
[EventDate "2022.06.05"]
[EventType "swiss"]
[EventRounds "9"]
[EventCountry "GER"]
[SourceTitle "playchess.com"]
[Source "ChessBase"]
[SourceQuality "1"]
[TimeControl "40/4500+30:900+30"]

{[%evp 29,77,6,15,-46,-55,-31,-45,-38,-50,-43,-35,-69,-69,-53,-52,-52,-50,-49,-50,-52,-51,-50,-45,-47,-45,-40,-33,-37,-27,-143,-143,-143,-112,-156,-156,-210,-149,-220,-209,-142,-129,-284,-270,-381,-195,-1460,-1360,-894,-363,-5514]} 1. e4 {[%emt 0:00:00]} c5 {[%emt 0:00:00]} 2. Nf3 {[%emt 0:00:00]} e6 {[%emt 0:00:00]} 3. d4 {[%emt 0:00:00]} cxd4 {[%emt 0:00:00]} 4. Nxd4 {[%emt 0:00:00]} a6 {[%emt 0:00:00]} 5. Nc3 {[%emt 0:00:00]} Qc7 {[%emt 0:00:00]} 6. Be2 {[%emt 0:00:00]} Nf6 {[%emt 0:00:00]} 7. O-O {[%emt 0:00:00]} Nc6 {[%emt 0:00:00]} 8. Be3 {[%emt 0:00:00]} Be7 {[%emt 0:00:00]} 9. f4 {[%emt 0:00:00]} d6 {[%emt 0:00:00]} 10. Qe1 {[%emt 0:00:00]} O-O {[%emt 0:00:00]} 11. Qg3 {[%emt 0:00:00]} Nxd4 {[%emt 0:00:45]} 12. Bxd4 {[%emt 0:00:00]} b5 {[%emt 0:00:26]} 13. a3 {[%emt 0:00:00]} Bb7 {[%emt 0:01:48]} 14. Rad1 {[%emt 0:02:30]} Rad8 {[%emt 0:03:24]} 15. Bf3 {[%emt 0:05:34]} Bc6 {[%emt 0:07:45]} 16. e5 {[%emt 0:06:59] B85: Sicilian Scheveningen: 6 Be2 a6, lines with early Be3.} (16. Rfe1 $11) 16... dxe5 $15 {[%emt 0:08:18]} 17. Bxe5 {[%emt 0:00:21]} Qb7 {[%emt 0:03:42] [#]} 18. Bxc6 $146 {[%emt 0:05:56] Black is slightly better.} ({Predecessor:} 18. Kh1 g6 19. Bxc6 Qxc6 20. Qf3 Rxd1 21. Rxd1 Rc8 22. Qxc6 Rxc6 23. g3 Kf8 24. Kg2 Ke8 25. Kf3 Nd7 26. Bd4 f5 27. Rd2 Nb6 28. Bxb6 Rxb6 29. Ne2 {½-½ (29) Ponater,M-Maxion,D (2280) Hamburg 1993}) 18... Qxc6 {[%emt 0:00:27]} 19. b4 {[%emt 0:38:42]} g6 {[%emt 0:28:35]} 20. Qf3 {[%emt 0:07:33]} Qxf3 {[%emt 0:02:28]} 21. Rxf3 {[%emt 0:00:13]} Rxd1+ {[%emt 0:02:12]} 22. Nxd1 {[%emt 0:00:20]} Rd8 {[%emt 0:02:00]} 23. Rd3 {[%emt 0:00:22]} Rxd3 {[%emt 0:02:13]} 24. cxd3 {[%emt 0:00:05][%mdl 4096] Endgame KBN-KBN} Nd5 {[%emt 0:01:54]} 25. g3 {[%emt 0:01:59]} Bd8 {[%emt 0:02:21]} 26. Bd4 {[%emt 0:01:47]} Kf8 {[%emt 0:02:12]} 27. Kf2 {[%emt 0:05:06]} Ke7 {[%emt 0:01:28]} 28. Kf3 {[%emt 0:04:45]} Kd7 {[%emt 0:04:21]} 29. Nc3 {[%emt 0:06:31]} (29. Nf2 $11 {remains equal.}) 29... Nxc3 $1 $17 {[%emt 0:01:00]} 30. Bxc3 {[%emt 0:00:04] [#] KB-KB} Kd6 $1 {[%emt 0:00:12]} 31. Ke3 {[%emt 0:00:37]} Kd5 {[%emt 0:00:06]} 32. Bd4 {[%emt 0:00:33] Inhibits Bb6.} (32. Bb2 $17) 32... h6 {[%emt 0:02:20][%cal Bh7h6,Bh6h5][%mdl 32]} 33. Bc3 {[%emt 0:01:08]} (33. Bg7 $17) 33... Bb6+ $19 {[%emt 0:00:41]} 34. Ke2 {[%emt 0:00:41]} h5 {[%emt 0:01:50]} 35. Bf6 $2 {[%emt 0:00:38] Now White is beyond hope.} (35. Bd2 $17) 35... Bg1 {[%emt 0:03:03]} 36. h3 {[%emt 0:00:19] [#]} (36. Bd8 $142) 36... Bd4 $1 {[%emt 0:01:41]} 37. Bxd4 {[%emt 0:00:06]} (37. Bd8) 37... Kxd4 {[%emt 0:00:02]} 38. Kd2 {[%emt 0:00:06]} f6 {[%emt 0:00:44]} (38... h4 $142 39. g4 f6) 39. g4 $2 {[%emt 0:00:39] Weighted Error Value: White=0.71/Black=0.24 (precise)} (39. h4) 0-1

[Event "GER-ch Youth-U14 2022"]
[Site "Willingen"]
[Date "2022.06.05"]
[Round "1.10"]
[White "Haubold, Sebastian Marcel"]
[Black "Deschler, Arne"]
[Result "1/2-1/2"]
[ECO "B19"]
[WhiteElo "1869"]
[BlackElo "1646"]
[Annotator "NA RC COMBH"]
[PlyCount "65"]
[EventDate "2022.06.05"]
[EventType "swiss"]
[EventRounds "9"]
[EventCountry "GER"]
[SourceTitle "playchess.com"]
[Source "ChessBase"]
[SourceQuality "1"]
[TimeControl "40/4500+30:900+30"]

1. e4 {[%emt 0:00:00]} c6 {[%emt 0:00:00]} 2. d4 {[%emt 0:00:00]} d5 {[%emt 0:00:00]} 3. Nc3 {[%emt 0:00:00]} dxe4 {[%emt 0:00:00]} 4. Nxe4 {[%emt 0:00:00]} Bf5 {[%emt 0:00:00]} 5. Ng3 {[%emt 0:00:00]} Bg6 {[%emt 0:00:00]} 6. Nf3 {[%emt 0:00:00]} Nd7 {[%emt 0:00:00]} 7. h4 {[%emt 0:00:00]} h6 {[%emt 0:00:00]} 8. h5 {[%emt 0:00:00]} Bh7 {[%emt 0:00:00]} 9. Bd3 {[%emt 0:00:00]} Bxd3 {[%emt 0:00:00]} 10. Qxd3 {[%emt 0:00:00]} Ngf6 {[%emt 0:00:00]} 11. Bd2 {[%emt 0:00:00]} Qc7 {[%emt 0:00:00]} 12. O-O-O {[%emt 0:00:57]} e6 {[%emt 0:00:00]} 13. Ne4 {[%emt 0:07:58]} O-O-O {[%emt 0:00:00]} 14. g3 {[%emt 0:18:45]} Nxe4 {[%emt 0:05:03]} 15. Qxe4 {[%emt 0:00:20]} Nf6 {[%emt 0:01:16]} 16. Qe2 {[%emt 0:00:40]} c5 {[%emt 0:03:02]} 17. Rh4 {[%emt 0:11:43]} Rd5 {[%emt 0:07:45]} 18. dxc5 {[%emt 0:12:21]} Nxh5 {[%emt 0:03:14]} 19. Ra4 {[%emt 0:02:42]} Bxc5 {[%emt 0:05:08]} 20. Rc4 {[%emt 0:00:16]} b5 {[%emt 0:06:19]} 21. Rc3 {[%emt 0:02:23]} b4 {[%emt 0:02:08]} 22. Rc4 {[%emt 0:00:37]} a5 {[%emt 0:01:48]} 23. Be3 {[%emt 0:06:38]} Nxg3 {[%emt 0:00:50]} 24. fxg3 {[%emt 0:09:31]} Bxe3+ $11 {[%emt 0:01:31]} 25. Nd2 {[%emt 0:00:18]} Bxd2+ {[%emt 0:01:07]} 26. Rxd2 {[%emt 0:00:06]} Rc5 {[%emt 0:00:28]} 27. Rcd4 {[%emt 0:00:25]} Qb7 {[%emt 0:06:32]} 28. Qd3 {[%emt 0:01:54]} Rd5 {[%emt 0:08:42]} 29. Qc4+ {[%emt 0:00:07]} Qc7 {[%emt 0:01:22]} 30. Qa6+ {[%emt 0:00:05]} Qb7 {[%emt 0:00:28]} 31. Qc4+ {[%emt 0:00:12]} Qc7 {[%emt 0:02:09]} 32. Qa6+ {[%emt 0:00:07]} Qb7 {[%emt 0:01:51]} 33. Qc4+ {[%emt 0:01:06]} 1/2-1/2

[Event "GER-ch Youth-U14 2022"]
[Site "Willingen"]
[Date "2022.06.05"]
[Round "1.11"]
[White "Linnemann, Caspar"]
[Black "Campora, Daniel H."]
[Result "1/2-1/2"]
[ECO "B15"]
[WhiteElo "1720"]
[BlackElo "2397"]
[Annotator "TA"]
[PlyCount "134"]
[EventDate "2022.06.05"]
[EventType "swiss"]
[EventRounds "9"]
[EventCountry "GER"]
[SourceTitle "playchess.com"]
[Source "ChessBase"]
[SourceQuality "1"]
[TimeControl "40/4500+30:900+30"]

{[%evp 10,134,24,13,24,0,6,-8,-10,-6,-3,-17,0,-18,-2,-13,-18,-168,-71,-66,-75,-78,-60,-60,-73,-63,-60,-85,-75,-81,-56,-74,-64,-66,-71,-99,-92,-85,-61,-100,-97,-121,-93,-111,-103,-119,-85,-98,-102,-109,-108,-116,-109,-137,-127,-147,-126,-141,-141,-141,-122,-141,-120,-136,-134,-188,-141,-189,-141,-190,-141,-195,-149,-235,-201,-191,-183,-208,-184,-170,-120,-120,-120,-120,-120,-120,-120,-122,-122,-122,-66,-122,-66,-67,-67,-67,-67,-67,-22,-67,-67,-67,-67,-67,-67,-67,0,-70,-71,-71,0,-71,0,-79,-79,-79,-79,-79,-79,-79,-79,-86,0,0,0,0,0]} 1. e4 {[%emt 0:00:00]} c6 {[%emt 0:00:00]} 2. d4 {[%emt 0:00:00]} d5 {[%emt 0:00:00]} 3. Nd2 {[%emt 0:00:00]} dxe4 {[%emt 0:00:00]} 4. Nxe4 {[%emt 0:00:00]} Nf6 {[%emt 0:00:00]} 5. Nxf6+ {[%emt 0:00:00]} exf6 {[%emt 0:00:00]} 6. Be3 {[%emt 0:00:00]} Bd6 {[%emt 0:00:00] B15: Caro-Kann: 3 Nc3: 3...g6 and 3...dxe4 4 Nxe4 Nf6 5 Nxf6+ exf6.} 7. Bc4 {[%emt 0:00:00]} O-O {[%emt 0:00:00]} 8. Ne2 {[%emt 0:00:00]} Re8 {[%emt 0:00:00]} 9. O-O {[%emt 0:00:00]} Nd7 {[%emt 0:00:00]} 10. Bb3 {[%emt 0:01:33] [#]} Nf8 $146 {[%emt 0:00:00]} ({Predecessor:} 10... f5 11. Bf4 Nf8 12. Bxd6 Qxd6 13. Qd2 Ng6 14. Rfe1 Bd7 15. Rad1 Re7 16. Nc1 Rae8 17. Rxe7 Rxe7 {0-1 (33) Ageichenko,G (2216)-Pogosian,M (2394) Moscow 2019}) 11. Qd2 {[%emt 0:04:59]} Ng6 {[%emt 0:00:00]} 12. Rfe1 {[%emt 0:05:44]} Qc7 {[%emt 0:00:00]} 13. h3 {[%emt 0:03:01] [#]} (13. Ng3 $11) 13... Nh4 {[%emt 0:06:32]} (13... Bxh3 $1 $19 {[%mdl 512] is more deadly.} 14. Qd3 (14. gxh3 $2 Qd7 $19) 14... Qd7) 14. Bf4 $17 {[%emt 0:19:06] [#]} Bxh3 $1 {[%emt 0:05:30]} 15. Bxd6 {[%emt 0:01:50]} Qxd6 {[%emt 0:00:20]} 16. Qf4 {[%emt 0:01:27]} Qxf4 {[%emt 0:02:39]} 17. Nxf4 {[%emt 0:00:15]} Bf5 {[%emt 0:04:28]} 18. c3 {[%emt 0:06:28]} Ng6 {[%emt 0:31:10]} 19. Nxg6 {[%emt 0:08:00]} Bxg6 {[%emt 0:00:11]} 20. f3 {[%emt 0:02:23]} Bf5 {[%emt 0:01:21]} 21. Kf2 {[%emt 0:09:38]} Kf8 {[%emt 0:04:56]} 22. Ba4 {[%emt 0:04:24]} Be6 {[%emt 0:03:18]} 23. Bc2 {[%emt 0:02:38]} g6 {[%emt 0:06:12]} 24. a3 {[%emt 0:06:02]} h5 {[%emt 0:07:55]} 25. Bd3 {[%emt 0:02:33]} Kg7 {[%emt 0:01:46]} 26. Re2 {[%emt 0:01:14]} Rad8 {[%emt 0:01:48]} 27. Rae1 {[%emt 0:01:55]} b5 {[%emt 0:03:10]} 28. Bc2 {[%emt 0:01:29]} Rh8 {[%emt 0:02:35]} 29. Be4 {[%emt 0:01:22]} Rd6 {[%emt 0:00:27]} 30. Bc2 {[%emt 0:02:23]} a5 {[%emt 0:00:53][%cal Ba7a5,Ba5a4][%mdl 32]} 31. Ra1 {[%emt 0:01:04]} Rb8 {[%emt 0:00:30]} 32. b4 {[%emt 0:00:53]} a4 {[%emt 0:00:23]} 33. Rb1 {[%emt 0:00:40]} Bc4 {[%emt 0:00:52]} 34. Re3 {[%emt 0:00:30]} Re6 {[%emt 0:01:45]} 35. Rbe1 {[%emt 0:00:28]} Rbe8 {[%emt 0:00:44]} 36. Be4 {[%emt 0:00:32][%cal Oe4c6]} Bd5 {[%emt 0:00:28]} 37. R1e2 {[%emt 0:00:56]} (37. Bd3 $17) 37... Kf8 {[%emt 0:02:24]} (37... h4 $19 38. Bd3 Rxe3 39. Rxe3 Rxe3 40. Kxe3 f5) 38. Re1 {[%emt 0:00:22]} (38. Bd3 $17 {might work better.}) 38... R8e7 {[%emt 0:00:24]} (38... f5 $19 39. Bd3 Rxe3 40. Rxe3 f4 41. Rxe8+ Kxe8) 39. R1e2 {[%emt 0:00:28]} (39. Bd3 $17) 39... Ke8 {[%emt 0:01:08]} (39... f5 $19 40. Bd3 Rxe3 41. Rxe3 f4 42. Rxe7 Kxe7) 40. Re1 {[%emt 0:00:12]} (40. Bd3 $17) 40... Kd7 {[%emt 0:00:14]} ({Black should try} 40... f5 $19 41. Bxd5 cxd5 42. Rxe6 fxe6) 41. R1e2 {[%emt 0:00:00]} (41. Bd3 $17) 41... Kd6 {[%emt 0:00:00]} 42. Re1 {[%emt 0:00:00]} Bc4 {[%emt 0:00:00]} 43. g3 {[%emt 0:00:00]} f5 {[%emt 0:00:00]} 44. Bc2 {[%emt 0:00:00]} Kd5 {[%emt 0:01:17]} ({Better is} 44... Bd5 $19 45. Bd3 f6 46. Rxe6+ Bxe6) 45. Rxe6 {[%emt 0:00:00]} Rxe6 {[%emt 0:00:24]} 46. Bb1 {[%emt 0:00:00]} Rxe1 {[%emt 0:02:25]} 47. Kxe1 {[%emt 0:00:00][%mdl 4096] Endgame KB-KB} Ke6 {[%emt 0:00:47][%cal Of5f4] aiming for ...f4!} 48. Kf2 {[%emt 0:00:00]} g5 {[%emt 0:01:34]} 49. Bc2 {[%emt 0:00:00]} Kf6 {[%emt 0:04:05]} (49... h4 $17 {...h3 is the strong threat.} 50. f4 hxg3+ 51. Kxg3 Kf6) 50. Kg2 {[%emt 0:00:00]} (50. f4 $1 $15) 50... g4 {[%emt 0:00:48]} (50... Bd5 $17 {Strongly threatening ...g4.} 51. Kf2 f4 52. gxf4 gxf4) 51. f4 $15 {[%emt 0:00:00]} Bd5+ {[%emt 0:00:54]} 52. Kf2 {[%emt 0:00:00]} Be4 {[%emt 0:00:22]} 53. Bd1 {[%emt 0:00:11]} Bd3 {[%emt 0:00:53]} 54. Ke3 {[%emt 0:00:27]} Bc4 {[%emt 0:06:16]} 55. Kf2 {[%emt 0:00:52]} Ke6 {[%emt 0:01:00]} 56. Bc2 {[%emt 0:00:34]} Bd5 {[%emt 0:00:13]} 57. Ke3 {[%emt 0:01:02]} Kf6 {[%emt 0:01:12][%cal Od5e4] White must now prevent ...Be4!} 58. Kf2 $1 {[%emt 0:00:31]} Kg6 {[%emt 0:00:03]} 59. Bd1 {[%emt 0:01:30]} Kf6 {[%emt 0:01:15]} 60. Bc2 $1 {[%emt 0:01:12]} Ke6 {[%emt 0:00:13]} 61. Ke3 {[%emt 0:01:09]} Bf3 {[%emt 0:01:36]} 62. Bd3 {[%emt 0:03:20]} Kd5 {[%emt 0:00:53] Inhibits c4+.} 63. Bf1 {[%emt 0:00:44]} ({Don't blunder} 63. Bxf5 $2 Kc4 64. Kd2 Kb3 $19) 63... Be4 {[%emt 0:00:07]} 64. Kf2 {[%emt 0:02:31]} Bh1 {[%emt 0:00:30]} 65. Ke3 {[%emt 0:00:13] [#]} f6 {[%emt 0:01:09]} (65... Bf3 $1 $17) 66. Bd3 $11 {[%emt 0:01:58]} Be4 67. Bf1 Bh1 {Black had all chances to win.  Weighted Error Value: White=0.20 (precise) /Black=0.19 (very precise)} 1/2-1/2